bitfinex/quotes_ETHUSD_20250724
["timestamp","ask_amount","ask_price","bid_price","bid_amount"]
[1753387653826,0.9228,3743.8,3743.7,4.325]
[1753387654386,0.9228,3743.8,3743.7,6.9961542]
[1753387654625,0.9228,3743.8,3743.7,4.324]
[1753387654829,2.67016494,3745.1,3743.7,4.324]
[1753387654830,0.9228,3745.1,3743.7,1.97729642]
[1753387654991,0.4659,3744.4,3743.8,4.324]
[1753387655193,0.4659,3744.4,3743.0,0.4884]
[1753387655194,0.49028407,3744.3,3743.9,4.324]
[1753387655397,0.55,3743.9,3741.7,0.4884]
[1753387655593,0.55,3743.3,3742.3,2.6721312]
[1753387655811,0.55,3743.1,3742.4,4.323]
[1753387656135,2.67182217,3742.8,3742.4,4.323]
[1753387656319,0.55,3742.9,3742.2,4.323]
[1753387656491,0.9228,3742.7,3742.2,4.323]
[1753387656692,0.9228,3742.6,3742.2,4.323]
[1753387656929,0.9228,3742.5,3742.2,4.323]
[1753387657230,0.9228,3742.4,3741.4,2.67276396]
[1753387657520,0.9228,3742.3,3741.4,2.67272586]
[1753387657724,2.70557634,3742.3,3741.5,4.322]
[1753387657928,3.59506428,3742.2,3741.3,2.67280583]
[1753387658118,0.9228,3742.1,3741.4,4.322]
[1753387658438,0.9228,3742.0,3741.4,4.322]
[1753387658731,0.9228,3741.9,3741.2,2.67293858]
[1753387658946,0.9228,3741.8,3741.4,4.321]
[1753387659106,0.9228,3741.7,3741.4,4.321]
[1753387659312,0.45126068,3742.0,3741.4,4.321]
[1753387659523,0.9228,3741.6,3741.4,4.321]
[1753387659838,0.9228,3741.5,3741.4,4.321]
[1753387660021,0.4569,3741.5,3741.4,4.321]
[1753387660223,0.9228,3741.5,3741.2,4.321]
[1753387660453,0.4659,3741.5,3741.2,6.99392887]
[1753387660650,0.9228,3741.4,3741.1,2.67300145]
[1753387660945,3.55,3742.1,3741.3,4.321]
[1753387661149,0.65562744,3742.0,3741.3,4.321]
[1753387661436,0.55,3741.7,3741.3,4.321]
[1753387661607,2.67298561,3741.2,3740.4,9.62749546]
[1753387661814,3.22280203,3741.4,3740.6,2.67335842]
[1753387661993,0.9228,3741.1,3740.5,6.99342293]
[1753387662196,0.9228,3741.0,3740.5,4.32]
[1753387662427,2.6729539,3741.2,3740.5,6.9934244]
[1753387662629,0.9228,3740.9,3740.5,6.9934244]
[1753387662796,0.9228,3740.8,3740.5,4.32]
[1753387662994,0.4569,3740.8,3740.5,4.321]
[1753387663201,0.9228,3740.7,3740.5,4.321]
[1753387663446,0.4659,3740.6,3740.5,4.321]
[1753387663806,0.55,3741.2,3740.5,4.321]
[1753387664003,0.4659,3740.9,3740.5,6.99443937]
[1753387664260,0.4659,3740.8,3740.5,4.321]
[1753387664417,0.9228,3740.7,3740.5,4.321]
[1753387664625,0.4569,3740.7,3740.5,4.321]
[1753387664812,0.4659,3740.6,3740.5,4.321]
[1753387669813,0.6056,3740.9,3740.5,6.99438009]
[1753387670053,0.4721,3740.8,3740.5,6.99438009]
[1753387670220,0.1336,3740.9,3740.5,4.321]
[1753387670415,3.14545509,3740.7,3740.5,0.001]
[1753387670621,1.43944551,3740.6,3740.5,0.001]
[1753387671855,1.0777,3740.6,3740.5,0.001]
[1753387672068,0.6057,3740.6,3740.5,0.001]
[1753387672359,0.4721,3740.6,3740.5,0.001]
[1753387673260,0.9441,3740.6,3740.5,0.001]
[1753387675327,4.1674679,3740.6,3740.5,0.001]
[1753387675658,4.86490088,3740.6,3740.5,0.001]
[1753387677126,4.89831797,3740.6,3740.5,0.001]
[1753387677765,9.21231797,3740.6,3740.5,0.001]
[1753387678073,9.17790088,3740.6,3740.5,0.001]
[1753387678846,4.39290088,3740.6,3740.5,0.001]
[1753387679063,9.21131797,3740.6,3740.5,0.001]
[1753387679363,9.17790088,3740.6,3740.5,0.001]
[1753387679762,12.17790088,3740.6,3740.5,0.001]
[1753387680270,7.86490088,3740.6,3740.5,0.001]
[1753387680431,12.17690088,3740.6,3740.5,0.001]
[1753387682838,9.50353298,3740.6,3740.5,0.001]
[1753387683041,12.17690088,3740.6,3740.5,0.001]
[1753387683674,7.86490088,3740.6,3740.5,0.001]
[1753387683981,9.50253298,3740.6,3740.5,0.001]
[1753387684291,12.17590088,3740.6,3740.5,0.001]
[1753387690257,12.17590088,3740.6,3740.5,1e-08]
[1753387690570,13.78590088,3740.6,3740.5,1e-08]
[1753387690785,28.85629236,3740.6,3740.5,1e-08]
[1753387691098,29.81683252,3740.6,3740.5,1e-08]
[1753387691298,6.22393978,3739.8,3739.7,1e-08]
[1753387691484,13.19171903,3739.8,3739.7,1e-08]
[1753387691657,14.26941903,3739.8,3739.7,1e-08]
[1753387692699,12.65941903,3739.8,3739.7,1e-08]
[1753387693914,8.35241903,3739.8,3739.7,1e-08]
[1753387694201,8.63641903,3739.8,3739.7,1e-08]
[1753387694358,12.18641903,3739.8,3739.7,1e-08]
[1753387694550,11.63641903,3739.8,3739.7,1e-08]
[1753387694755,12.10841903,3739.8,3739.7,1e-08]
[1753387694955,12.65841903,3739.8,3739.7,1e-08]
[1753387696581,7.40831903,3739.8,3739.7,1e-08]
[1753387696926,12.14341903,3739.8,3739.7,1e-08]
[1753387697122,12.60921903,3739.8,3739.7,1e-08]
[1753387701442,14.21921903,3739.8,3739.7,1e-08]
[1753387703930,14.78830409,3739.8,3739.7,1e-08]
[1753387704438,3.72471903,3739.8,3739.7,1e-08]
[1753387704736,9.97593978,3739.8,3739.7,1e-08]
[1753387705197,10.52593978,3739.8,3739.7,1e-08]
[1753387707032,10.52793978,3739.8,3739.7,1e-08]
[1753387707229,10.95803978,3739.8,3739.7,1e-08]
[1753387707996,11.42383978,3739.8,3739.7,1e-08]
[1753387708334,14.69269921,3739.8,3739.7,1e-08]
[1753387708690,14.12293154,3739.8,3739.7,1e-08]
[1753387708894,14.22689382,3739.8,3739.7,1e-08]
[1753387709092,14.69269382,3739.8,3739.7,1e-08]
[1753387709835,14.12293154,3739.8,3739.7,1e-08]
[1753387711901,7.83401128,3739.7,3739.6,1e-08]
[1753387712130,6.22444037,3739.1,3739.0,1e-08]
[1753387712341,12.13244037,3739.1,3739.0,1e-08]
[1753387712550,13.02834037,3739.1,3739.0,1e-08]
[1753387713037,13.27574621,3739.1,3739.0,1e-08]
[1753387713208,14.29485605,3739.1,3739.0,1e-08]
[1753387713848,14.86478699,3739.1,3739.0,1e-08]
[1753387714411,15.11215197,3739.1,3739.0,1e-08]
[1753387714739,15.24575197,3739.1,3739.0,1e-08]
[1753387715601,29.74575197,3739.1,3739.0,1e-08]
[1753387716033,29.74581105,3739.1,3739.0,1e-08]
[1753387716917,36.93581105,3739.1,3739.0,1e-08]
[1753387717526,36.93481105,3739.1,3739.0,1e-08]
[1753387720352,32.63781105,3739.1,3739.0,1e-08]
[1753387720556,36.93381105,3739.1,3739.0,1e-08]
[1753387722347,15.08191105,3739.1,3739.0,1e-08]
[1753387722540,18.55855605,3739.1,3739.0,1e-08]
[1753387722739,19.10855605,3739.1,3739.0,1e-08]
[1753387722939,11.26455605,3739.1,3739.0,1e-08]
[1753387723143,15.55855605,3739.1,3739.0,1e-08]
[1753387723354,4.07455605,3739.1,3739.0,1e-08]
[1753387723521,7.10204037,3739.1,3739.0,0.47230001]
[1753387723846,10.10204037,3739.1,3739.0,0.47230001]
[1753387724018,10.10204037,3739.1,3739.0,1e-08]
[1753387724222,11.08214037,3739.1,3739.0,1e-08]
[1753387724549,10.65204037,3739.1,3739.0,1e-08]
[1753387724747,12.02768977,3739.1,3739.0,1e-08]
[1753387725516,12.47518977,3739.1,3739.0,1e-08]
[1753387725921,12.97348977,3739.1,3739.0,1e-08]
[1753387727860,12.47518977,3739.1,3739.0,1e-08]
[1753387728358,12.97348977,3739.1,3739.0,1e-08]
[1753387728924,14.58348977,3739.1,3739.0,1e-08]
[1753387732125,14.83076688,3739.1,3739.0,1e-08]
[1753387732321,15.40070203,3739.1,3739.0,1e-08]
[1753387734069,14.83076688,3739.1,3739.0,1e-08]
[1753387734275,3.22494115,3738.4,3738.3,1e-08]
[1753387734444,12.29197791,3738.4,3738.3,1e-08]
[1753387734645,13.20434115,3738.4,3738.3,1e-08]
[1753387735666,6.2250127,3738.3,3738.2,1e-08]
[1753387735973,7.75911196,3738.3,3738.2,1e-08]
[1753387736535,7.26081196,3738.3,3738.2,1e-08]
[1753387740375,6.81331196,3738.3,3738.2,1e-08]
[1753387740546,2.6750127,3738.3,3738.2,1.71400001]
[1753387740751,6.9610127,3738.3,3738.2,1.71400001]
[1753387740953,7.5110127,3738.3,3738.2,1.28120001]
[1753387741151,7.5110127,3738.3,3738.2,1.71400001]
[1753387742893,0.55,3738.3,3738.2,1.71400001]
[1753387743104,7.5100127,3738.3,3738.2,1.71400001]
[1753387743256,10.5100127,3738.3,3738.2,1.71400001]
[1753387743605,10.5100127,3738.3,3738.2,1.28120001]
[1753387743811,10.5100127,3738.3,3738.2,0.81690001]
[1753387743812,11.84186164,3738.3,3738.2,0.81690001]
[1753387744014,12.28936164,3738.3,3738.2,1e-08]
[1753387744306,12.78766164,3738.3,3738.2,1e-08]
[1753387744651,12.28936164,3738.3,3738.2,1e-08]
[1753387745798,13.89936164,3738.3,3738.2,1e-08]
[1753387746460,14.39766164,3738.3,3738.2,1e-08]
[1753387747963,14.96957674,3738.3,3738.2,1e-08]
[1753387749268,15.21766044,3738.3,3738.2,1e-08]
[1753387749595,3.22544211,3737.7,3737.6,0.001]
[1753387749791,11.42556493,3737.7,3737.6,0.001]
[1753387749955,11.39212191,3737.7,3737.6,0.001]
[1753387750160,7.83551369,3737.6,3737.5,0.001]
[1753387750361,8.28301369,3737.6,3737.5,0.001]
[1753387750562,6.67301369,3737.6,3737.5,0.001]
[1753387750863,6.67301369,3737.6,3737.4,0.001]
[1753387750864,7.83558528,3737.5,3737.4,1e-08]
[1753387751062,13.76762926,3737.5,3737.4,1e-08]
[1753387751284,35.45762926,3737.5,3737.4,1e-08]
[1753387751766,7.83608649,3736.8,3736.7,1e-08]
[1753387751984,12.82233047,3736.8,3736.7,1e-08]
[1753387752292,6.22658788,3736.1,3736.0,1e-08]
[1753387752497,10.64118788,3736.1,3736.0,1e-08]
[1753387752863,11.58698788,3736.1,3736.0,1e-08]
[1753387753077,12.91883682,3736.1,3736.0,1e-08]
[1753387754803,27.41883682,3736.1,3736.0,1e-08]
[1753387755294,29.02883682,3736.1,3736.0,1e-08]
[1753387755594,27.41883682,3736.1,3736.0,1e-08]
[1753387756907,34.60883682,3736.1,3736.0,1e-08]
[1753387757207,34.60883682,3736.1,3733.8,2.81183256]
[1753387757208,3.22816492,3733.9,3733.8,0.8063]
[1753387757507,4.83,3733.9,3733.8,0.8063]
[1753387757662,7.50816492,3733.9,3733.8,0.8063]
[1753387758006,7.50816492,3733.9,3733.8,1.7209]
[1753387758365,4.83,3733.9,3733.8,1.7209]
[1753387758803,7.50816492,3733.9,3733.8,1.7209]
[1753387759769,4.83,3733.9,3733.8,1.7209]
[1753387760178,7.50816492,3733.9,3733.8,1.7209]
[1753387760512,7.50816492,3733.9,3733.8,1.2728]
[1753387762772,4.83,3733.9,3733.8,1.2728]
[1753387762996,7.54164198,3733.9,3733.8,1.2728]
[1753387763171,7.50816492,3733.9,3733.8,0.8063]
[1753387763377,6.22825595,3733.8,3733.4,1.2009]
[1753387763699,6.22825595,3733.8,3733.4,0.7528]
[1753387763700,0.55,3733.5,3733.4,0.7528]
[1753387763873,4.86148064,3733.5,3733.4,0.7528]
[1753387764075,4.86148064,3733.5,3733.4,1.2193]
[1753387764302,4.86148064,3733.5,3733.4,1.6674]
[1753387765806,7.53993249,3733.5,3733.4,1.6674]
[1753387766016,7.53993249,3733.5,3732.5,2.6791521]
[1753387766017,0.55,3733.2,3732.9,0.4665]
[1753387766223,0.55,3733.2,3732.8,0.7575]
[1753387766224,3.22866709,3733.2,3733.1,0.4481]
[1753387766522,4.828,3733.2,3733.1,0.4481]
[1753387766691,4.828,3733.2,3733.1,0.9146]
[1753387767104,0.55,3733.6,3733.1,0.9146]
[1753387767310,0.1336,3733.2,3732.8,0.7575]
[1753387767628,0.6836,3732.9,3732.8,0.7575]
[1753387767819,4.9606,3732.9,3732.8,0.7575]
[1753387768131,4.9606,3732.9,3732.8,1.6721]
[1753387768877,4.9606,3732.9,3732.2,2.67938228]
[1753387768878,3.22895413,3732.8,3732.2,0.7873]
[1753387769191,3.55,3732.3,3732.2,1.2538]
[1753387769520,10.50631302,3732.3,3732.2,1.7019]
[1753387769811,10.50631302,3732.3,3732.2,1.2538]
[1753387771493,10.50531302,3732.3,3732.2,1.7019]
[1753387771723,7.826,3732.3,3732.2,1.7019]
[1753387772023,0.55,3732.1,3732.0,1.2945]
[1753387772190,4.826,3732.1,3732.0,0.828]
[1753387772390,4.826,3732.1,3732.0,1.2761]
[1753387772721,4.826,3732.1,3732.0,1.7426]
[1753387773423,0.55,3732.5,3732.0,1.7426]
[1753387773623,0.55,3732.1,3732.0,0.828]
[1753387773834,10.5054566,3732.1,3732.0,0.828]
[1753387774338,10.5054566,3732.1,3732.0,1.7426]
[1753387774483,3.55,3732.1,3732.0,1.7426]
[1753387774684,7.826,3732.1,3732.0,1.7426]
[1753387774891,10.5054566,3732.1,3732.0,1.2945]
[1753387775621,7.826,3732.1,3732.0,1.7426]
[1753387779133,7.9596,3732.1,3732.0,1.7426]
[1753387781743,3.6836,3732.1,3732.0,1.7426]
[1753387782029,7.9576,3732.1,3732.0,1.7426]
[1753387787431,7.9576,3732.1,3732.0,1.2945]
[1753387787805,7.9546,3732.1,3732.0,1.7464]
[1753387789019,7.9546,3732.1,3732.0,1.7743]
[1753387789203,7.9546,3732.1,3732.0,1.3224]
[1753387789464,3.6836,3732.1,3732.0,1.3224]
[1753387789641,7.9536,3732.1,3732.0,1.3224]
[1753387790140,3.6836,3732.1,3732.0,1.3224]
[1753387790340,7.9536,3732.1,3732.0,1.3224]
[1753387790704,7.9536,3732.1,3732.0,1.7743]
[1753387791614,0.1336,3732.1,3732.0,8.25383118]
[1753387791798,0.57289488,3733.1,3732.2,0.8099]
[1753387792003,0.1336,3732.8,3732.5,3.48906945]
[1753387792305,4.269,3732.7,3732.6,0.9463]
[1753387792502,0.1336,3732.8,3732.7,2.6790259]
[1753387792703,2.67854467,3733.4,3733.0,2.6788106]
[1753387792704,0.57289488,3733.1,3733.0,2.6788106]
[1753387793004,0.94625418,3733.6,3733.2,2.67866709]
[1753387793005,0.57289488,3733.5,3733.2,2.67866709]
[1753387793214,4.269,3733.7,3733.3,4.43479311]
[1753387793422,1.28725135,3733.9,3733.6,3.48826918]
[1753387793653,4.269,3733.9,3733.7,0.9463]
[1753387793860,7.97549488,3733.9,3733.8,0.9463]
[1753387794055,4.97549488,3733.9,3733.8,0.9463]
[1753387794255,4.4026,3733.9,3733.8,0.9463]
[1753387794467,4.4026,3733.9,3733.2,0.1336]
[1753387794468,1.61,3733.8,3732.4,1.313]
[1753387794615,1.61,3733.8,3732.5,0.9463]
[1753387794616,3.0,3733.6,3732.5,0.9463]
[1753387794821,0.55,3733.3,3732.6,1.7649]
[1753387795021,3.55,3733.1,3732.7,0.9463]
[1753387795355,0.55,3732.9,3732.8,0.9463]
[1753387795516,4.818,3733.0,3732.6,0.8186]
[1753387795847,4.818,3733.0,3732.9,0.9463]
[1753387796751,4.267,3733.2,3732.9,1.7334]
[1753387797054,3.0,3733.1,3732.0,0.001]
[1753387797253,3.0,3732.9,3732.3,0.7871]
[1753387797421,0.55,3732.6,3732.3,0.7871]
[1753387797618,0.55,3732.4,3732.3,0.7871]
[1753387797818,3.22924123,3732.4,3732.3,0.7871]
[1753387798242,0.55,3732.4,3732.3,0.7871]
[1753387798451,0.55,3732.4,3732.3,1.2815]
[1753387798950,0.55,3732.4,3732.3,0.7871]
[1753387799618,0.55,3732.4,3732.3,1.2815]
[1753387800316,2.67853582,3733.4,3732.7,2.67901588]
[1753387800517,0.57413602,3733.8,3732.9,0.8122]
[1753387800718,4.29947885,3733.7,3733.0,0.4944]
[1753387800923,3.0,3733.3,3733.0,0.4944]
[1753387801143,6.97820122,3733.2,3732.9,0.8122]
[1753387801346,6.94471789,3733.2,3732.9,0.8122]
[1753387801864,2.67811053,3734.0,3733.2,2.67859757]
[1753387802067,4.265,3734.0,3733.3,1.7377]
[1753387802268,4.265,3734.0,3733.4,0.4944]
[1753387802470,4.265,3734.0,3733.5,3.13028099]
[1753387802667,4.265,3734.0,3733.5,2.67838099]
[1753387802668,3.0,3733.9,3733.5,2.67838099]
[1753387802835,3.0,3733.9,3733.6,0.4944]
[1753387803033,2.67787511,3734.4,3733.7,0.9463]
[1753387803234,6.9429381,3734.3,3733.8,1.3044]
[1753387803542,3.0,3734.2,3733.9,0.4944]
[1753387803761,3.0,3734.2,3733.8,0.81]
[1753387803762,3.0,3734.1,3733.8,0.81]
[1753387804072,0.55,3734.0,3733.8,1.3044]
[1753387804449,0.6836,3733.9,3733.8,1.3044]
[1753387807373,0.4307,3735.2,3733.8,1.7563]
[1753387807563,2.67752842,3734.8,3734.2,0.774]
[1753387807871,0.1336,3734.5,3734.3,0.4944]
[1753387808065,0.1336,3734.5,3734.4,0.4944]
[1753387809479,0.1336,3734.5,3734.4,3.17220634]
[1753387809673,0.1336,3734.5,3734.4,0.9463]
[1753387809861,4.262,3734.9,3734.5,0.774]
[1753387810049,3.0,3734.8,3734.6,0.9463]
[1753387810389,0.1336,3734.9,3734.7,0.4944]
[1753387810588,4.262,3735.5,3734.7,0.9463]
[1753387810880,4.261,3735.7,3735.2,2.67722189]
[1753387811040,0.1336,3735.4,3735.3,0.4944]
[1753387811238,0.1336,3735.4,3735.3,3.12906113]
[1753387811435,9.93770694,3736.0,3735.3,3.90806113]
[1753387811635,0.1336,3735.6,3735.3,1.2309]
[1753387811868,0.1336,3735.6,3735.4,0.4944]
[1753387812277,0.1336,3735.6,3735.3,1.2309]
[1753387812484,0.1336,3735.6,3735.5,0.4944]
[1753387813589,3.1336,3735.6,3735.5,0.4944]
[1753387813769,0.1336,3735.6,3735.5,0.4944]
[1753387813972,3.1336,3735.6,3735.5,0.4944]
[1753387814853,0.1336,3735.6,3735.5,0.4944]
[1753387816657,3.0,3735.7,3735.5,0.4944]
[1753387816863,3.22708946,3735.4,3735.3,0.779]
[1753387817160,0.55,3735.3,3735.1,4.258]
[1753387817372,0.1336,3735.2,3735.1,4.258]
[1753387817782,0.1336,3735.2,3734.9,5.5089]
[1753387818159,0.1336,3735.2,3735.0,0.4531]
[1753387818879,2.8108424,3735.2,3734.9,5.0558]
[1753387819072,2.8108424,3735.2,3734.9,5.5089]
[1753387819270,0.1336,3735.2,3734.9,5.5089]
[1753387819877,2.67737617,3735.0,3734.9,0.7978]
[1753387820081,0.55,3734.9,3734.6,0.7999]
[1753387820277,0.6836,3734.7,3734.6,0.7999]
[1753387823147,2.67721443,3735.3,3734.6,1.691]
[1753387823367,2.67708946,3735.4,3734.7,3.56863285]
[1753387823570,0.1336,3735.1,3734.7,3.56863285]
[1753387824058,0.1336,3735.1,3734.8,0.8911]
[1753387824397,0.1336,3735.1,3734.8,0.438]
[1753387824569,0.1336,3735.1,3734.9,0.4531]
[1753387827775,0.4779,3736.6,3735.1,0.7743]
[1753387827953,0.4702,3736.6,3735.7,0.7743]
[1753387828153,2.67649803,3736.3,3735.7,0.7743]
[1753387828357,2.67649803,3736.3,3735.8,0.4531]
[1753387828790,3.0,3736.2,3735.8,0.4531]
[1753387829191,5.6765327,3736.2,3735.8,0.4531]
[1753387829991,5.6765327,3736.2,3735.7,0.7743]
[1753387830196,3.55,3736.2,3735.8,0.4531]
[1753387830978,3.22653169,3736.2,3735.8,0.4531]
[1753387831379,3.55,3736.2,3735.8,0.4531]
[1753387832601,0.55,3736.3,3735.8,0.4531]
[1753387832776,3.55,3736.3,3735.9,0.4531]
[1753387833112,3.002,3736.1,3735.9,0.4531]
[1753387834099,3.002,3736.1,3735.7,0.7743]
[1753387834620,0.002,3736.1,3735.8,0.8911]
[1753387834908,0.002,3736.1,3735.8,0.4531]
[1753387835104,0.002,3736.1,3735.9,0.4531]
[1753387835872,0.002,3736.1,3735.8,2.67679092]
[1753387836068,0.002,3736.1,3736.0,0.4531]
[1753387836372,0.002,3736.1,3736.0,1.63652028]
[1753387836576,0.002,3736.1,3736.0,2.07452028]
[1753387837270,0.002,3736.1,3736.0,4.7511798]
[1753387837471,0.002,3736.1,3736.0,2.07452028]
[1753387837876,0.002,3736.1,3736.0,2.20812028]
[1753387838687,0.002,3736.1,3736.0,4.8847798]
[1753387838885,0.002,3736.1,3736.0,4.4316798]
[1753387839189,0.002,3736.1,3736.0,4.8847798]
[1753387841980,0.002,3736.1,3736.0,2.20812028]
[1753387842182,0.002,3736.1,3736.0,6.01712028]
[1753387842605,0.002,3736.1,3736.0,8.6937798]
[1753387843313,0.002,3736.1,3736.0,9.1317798]
[1753387843897,0.002,3736.1,3736.0,6.01712028]
[1753387845180,0.002,3736.1,3736.0,8.6937798]
[1753387848759,0.002,3736.1,3736.0,6.01712028]
[1753387848922,0.002,3736.1,3736.0,8.7268798]
[1753387850463,0.002,3736.1,3736.0,1.31702028]
[1753387850629,3.12648788,3736.1,3735.6,4.244]
[1753387850831,3.12456109,3736.0,3735.6,4.244]
[1753387852451,2.67666109,3736.0,3735.6,4.244]
[1753387852654,0.4479,3735.9,3735.6,4.244]
[1753387853058,2.67859414,3736.1,3735.6,4.244]
[1753387853358,3.12649414,3736.1,3735.6,4.244]
[1753387853862,0.4499,3736.1,3735.6,4.244]
[1753387854160,0.4479,3736.0,3735.6,4.244]
[1753387857661,0.4479,3735.9,3735.6,4.244]
[1753387857952,3.12463554,3735.9,3735.6,4.244]
[1753387858158,0.4479,3735.8,3735.6,4.244]
[1753387859068,3.12457663,3736.0,3735.6,4.244]
[1753387859250,2.67667663,3736.0,3735.6,4.244]
[1753387859452,0.4479,3735.9,3735.6,4.244]
[1753387860258,0.002,3736.1,3735.5,0.001]
[1753387860470,3.22694613,3735.6,3735.5,0.001]
[1753387860634,4.27024613,3735.6,3735.5,4.242]
[1753387861074,4.27024613,3735.6,3735.5,0.001]
[1753387862472,3.80844613,3735.6,3735.5,0.001]
[1753387862659,1.1315,3735.6,3735.5,0.001]
[1753387862862,3.80844613,3735.6,3735.5,0.001]
[1753387864873,4.27024613,3735.6,3735.5,0.001]
[1753387867473,7.70542987,3735.6,3735.5,0.001]
[1753387868840,7.24362987,3735.6,3735.5,0.001]
[1753387869039,7.70542987,3735.6,3735.5,0.001]
[1753387872380,3.1336,3735.6,3735.5,0.001]
[1753387872694,3.6836,3735.6,3735.5,0.4872]
[1753387872981,6.36054613,3735.6,3735.5,0.001]
[1753387873880,3.6836,3735.6,3735.5,0.001]
[1753387874087,6.36054613,3735.6,3735.5,0.001]
[1753387874290,3.6836,3735.6,3735.5,0.001]
[1753387878160,4.237,3736.1,3735.5,1.2861]
[1753387878369,0.1336,3735.8,3735.5,1.2861]
[1753387878555,0.1336,3735.8,3735.6,0.4565]
[1753387878894,0.1336,3735.8,3735.5,0.8296]
[1753387879186,0.1336,3735.8,3735.5,1.2861]
[1753387879390,2.81043721,3735.8,3735.5,1.2861]
[1753387879562,3.22694613,3735.6,3735.5,0.001]
[1753387879758,3.36054613,3735.6,3735.5,0.001]
[1753387879970,4.27714613,3735.6,3735.5,0.001]
[1753387880692,1.1176,3735.6,3735.5,0.001]
[1753387880857,0.6836,3735.6,3735.5,0.001]
[1753387881189,3.36054613,3735.6,3735.5,0.001]
[1753387882801,0.6836,3735.6,3735.5,0.4575]
[1753387883293,3.36054613,3735.6,3735.5,0.4575]
[1753387883512,3.36054613,3735.6,3735.5,0.001]
[1753387884883,7.31060795,3735.6,3735.5,0.001]
[1753387885081,11.51014613,3735.6,3735.5,0.001]
[1753387887239,11.51014613,3735.6,3735.5,1e-08]
[1753387887410,13.12014613,3735.6,3735.5,1e-08]
[1753387889418,13.11814613,3735.6,3735.5,1e-08]
[1753387890185,7.27714613,3735.6,3735.5,1e-08]
[1753387890489,11.50814613,3735.6,3735.5,1e-08]
[1753387890942,12.08343529,3735.6,3735.5,1e-08]
[1753387891292,13.11814613,3735.6,3735.5,1e-08]
[1753387891599,13.69319893,3735.6,3735.5,1e-08]
[1753387892233,13.11814613,3735.6,3735.5,1e-08]
[1753387894429,13.36748215,3735.6,3735.5,1e-08]
[1753387894735,13.36748214,3735.6,3735.5,1e-08]
[1753387898839,13.11814613,3735.6,3735.5,1e-08]
[1753387904723,12.63554613,3735.6,3735.5,1e-08]
[1753387905654,8.40454613,3735.6,3735.5,1e-08]
[1753387905947,12.63054613,3735.6,3735.5,1e-08]
[1753387906151,6.79454613,3735.6,3735.5,1e-08]
[1753387906314,11.02054613,3735.6,3735.5,1e-08]
[1753387906948,10.58654613,3735.6,3735.5,1e-08]
[1753387909356,11.01824613,3735.6,3735.5,1e-08]
[1753387910252,10.58654613,3735.6,3735.5,1e-08]
[1753387914839,10.58254613,3735.6,3735.5,1.31540001]
[1753387915041,10.03254613,3735.6,3735.5,1.77250001]
[1753387915367,4.3556,3735.6,3735.5,1.77250001]
[1753387915743,7.3556,3735.6,3735.5,1.77250001]
[1753387916069,7.9056,3735.6,3735.5,1.77250001]
[1753387917150,3.6836,3735.6,3735.5,1.77250001]
[1753387918376,6.36054613,3735.6,3735.5,1.77250001]
[1753387918950,3.6836,3735.6,3735.5,1.77250001]
[1753387919731,3.6836,3735.6,3735.5,1e-08]
[1753387919732,10.58154613,3735.6,3735.5,1e-08]
[1753387920061,11.01324613,3735.6,3735.5,1e-08]
[1753387921584,11.51124613,3735.6,3735.5,1e-08]
[1753387924268,11.51324613,3735.6,3735.5,1e-08]
[1753387927847,11.01524613,3735.6,3735.5,1e-08]
[1753387934078,11.26569946,3735.6,3735.5,1e-08]
[1753387935477,13.91796453,3735.6,3735.5,1e-08]
[1753387935944,14.06823746,3735.6,3735.5,1e-08]
[1753387936151,14.06820987,3735.6,3735.5,1e-08]
[1753387936351,21.25820987,3735.6,3735.5,1e-08]
[1753387940385,21.25823926,3735.6,3735.5,1e-08]
[1753387947390,27.28114738,3735.6,3735.5,1e-08]
[1753387948196,3.22751954,3734.8,3734.7,1e-08]
[1753387948398,16.59402766,3734.8,3734.7,1e-08]
[1753387948598,17.06772766,3734.8,3734.7,1e-08]
[1753387950366,19.39373198,3734.8,3734.7,1e-08]
[1753387950857,20.12121036,3734.8,3734.7,1e-08]
[1753387951064,19.39373198,3734.8,3734.7,1e-08]
[1753387952804,8.22152386,3734.8,3734.7,1e-08]
[1753387953015,10.01911954,3734.8,3734.7,1e-08]
[1753387953305,10.56911954,3734.8,3734.7,0.93220001]
[1753387953509,10.56911954,3734.8,3734.7,0.49970001]
[1753387953678,10.01911954,3734.8,3734.7,0.49970001]
[1753387953868,10.01911954,3734.8,3734.7,0.93220001]
[1753387954079,10.56911954,3734.8,3734.7,0.49970001]
[1753387956674,10.56911954,3734.8,3734.7,0.93220001]
[1753387956675,6.36111954,3734.8,3734.7,0.93220001]
[1753387956877,10.56811954,3734.8,3734.7,0.93220001]
[1753387957799,10.56811954,3734.8,3734.7,0.49970001]
[1753387958295,10.56811954,3734.8,3734.7,1e-08]
[1753387959443,10.56811954,3734.8,3734.7,0.49970001]
[1753387959799,10.56811954,3734.8,3734.7,0.93220001]
[1753387962209,10.56811954,3734.8,3734.7,1e-08]
[1753387962210,13.11741954,3734.8,3734.7,1e-08]
[1753387962620,13.36783596,3734.8,3734.7,1e-08]
[1753387963435,13.36781871,3734.8,3734.7,1e-08]
[1753387964130,13.51807396,3734.8,3734.7,1e-08]
[1753387964853,14.09512252,3734.8,3734.7,1e-08]
[1753387966152,8.37177396,3734.8,3734.7,1e-08]
[1753387966335,12.57577396,3734.8,3734.7,1e-08]
[1753387966539,12.57477396,3734.8,3734.7,1e-08]
[1753387966717,12.42451871,3734.8,3734.7,1e-08]
[1753387967611,6.61351871,3734.8,3734.7,1e-08]
[1753387967814,10.56611954,3734.8,3734.7,1e-08]
[1753387968432,10.01611954,3734.8,3734.7,1e-08]
[1753387968641,10.56611954,3734.8,3734.7,1e-08]